bitfinex/quotes_BTCUSD_20250519
["timestamp","ask_amount","ask_price","bid_price","bid_amount"]
[1747648144823,1.01915621,103150.0,103140.0,0.03254942]
[1747648145435,0.49007621,103150.0,103140.0,0.03254942]
[1747648145642,0.67915621,103150.0,103140.0,0.03254942]
[1747648145845,0.30099621,103150.0,103140.0,0.03254942]
[1747648146070,0.30099621,103150.0,103140.0,0.03724321]
[1747648148325,0.30099621,103150.0,103140.0,0.03924321]
[1747648149731,0.21338114,103150.0,103140.0,0.24880161]
[1747648150079,0.20368681,103150.0,103140.0,0.23910624]
[1747648150285,0.20368681,103150.0,103140.0,0.2488017]
[1747648150538,0.21338095,103150.0,103140.0,0.25849688]
[1747648151197,0.20368681,103150.0,103140.0,0.2488017]
[1747648151409,0.20368681,103150.0,103140.0,0.23910624]
[1747648151627,0.20368681,103150.0,103140.0,0.24880179]
[1747648151838,0.19399238,103150.0,103140.0,0.04519506]
[1747648152052,0.19399238,103150.0,103140.0,0.04719506]
[1747648155591,0.19399238,103150.0,103140.0,0.24110624]
[1747648155807,0.19399238,103150.0,103140.0,0.25080179]
[1747648156017,0.19399238,103150.0,103140.0,0.26049725]
[1747648156191,0.19399238,103150.0,103140.0,0.04719506]
[1747648158574,0.19399238,103150.0,103140.0,0.24110624]
[1747648160048,0.19399238,103150.0,103140.0,0.26049716]
[1747648160488,0.19399238,103150.0,103140.0,0.25080179]
[1747648164004,0.19399238,103150.0,103140.0,0.24110624]
[1747648164624,0.19399238,103150.0,103140.0,0.25080179]
[1747648165199,0.2036869,103150.0,103140.0,0.26049725]
[1747648165432,0.2036869,103150.0,103140.0,0.2798877]
[1747648165643,0.2036869,103150.0,103140.0,0.27019262]
[1747648167385,0.19399238,103150.0,103140.0,0.25080179]
[1747648168097,0.19399238,103150.0,103140.0,0.24110624]
[1747648168316,0.19399238,103150.0,103140.0,0.04719506]
[1747648168528,0.20979238,103150.0,103140.0,0.03169506]
[1747648168998,0.39875238,103150.0,103140.0,0.03169506]
[1747648169217,0.38295238,103150.0,103140.0,0.03169506]
[1747648169874,0.38295238,103150.0,103140.0,0.26989224]
[1747648169875,0.22307575,103150.0,103140.0,0.26989224]
[1747648170050,0.41203575,103150.0,103140.0,0.26019716]
[1747648170254,0.41203575,103150.0,103140.0,0.26989243]
[1747648170459,0.0001,103150.0,103140.0,0.27958761]
[1747648170605,0.2036869,103150.0,103140.0,0.27958761]
[1747648171156,0.2036869,103150.0,103140.0,0.26989243]
[1747648175413,0.2036869,103150.0,103140.0,0.27958761]
[1747648175846,0.2036869,103150.0,103140.0,0.28157239]
[1747648176355,0.00979452,103150.0,103140.0,0.29126729]
[1747648176576,0.21338151,103150.0,103140.0,0.29126729]
[1747648176780,0.22307575,103150.0,103140.0,0.28157239]
[1747648176985,0.22307501,103150.0,103140.0,0.29126729]
[1747648177206,0.24246414,103150.0,103140.0,0.29126729]
[1747648177834,0.03887715,103150.0,103140.0,0.29126729]
[1747648178050,0.24246414,103150.0,103140.0,0.29126729]
[1747648178248,0.02918263,103150.0,103140.0,0.29126729]
[1747648178653,0.23276953,103150.0,103140.0,0.29126729]
[1747648179502,0.24246414,103150.0,103140.0,0.29126729]
[1747648180335,0.24246414,103150.0,103140.0,0.28157239]
[1747648180513,0.23277018,103150.0,103140.0,0.28157239]
[1747648181087,0.22307594,103150.0,103140.0,0.27187712]
[1747648181623,0.22307594,103150.0,103140.0,0.2815722]
[1747648184051,0.22307594,103150.0,103140.0,0.29126719]
[1747648184261,0.22307594,103150.0,103140.0,0.2815722]
[1747648186405,0.22307594,103150.0,103140.0,0.27187712]
[1747648188604,0.22307594,103150.0,103140.0,0.25667712]
[1747648188833,0.20368699,103150.0,103140.0,0.23728657]
[1747648189062,0.20368699,103150.0,103140.0,0.24698203]
[1747648189275,0.19399238,103150.0,103140.0,0.03367984]
[1747648189475,0.21039238,103150.0,103140.0,0.03367984]
[1747648193595,0.19399238,103150.0,103140.0,0.22759102]
[1747648193818,0.19399238,103150.0,103140.0,0.03367984]
[1747648196472,0.19399238,103150.0,103140.0,0.22759102]
[1747648196705,0.19399238,103150.0,103140.0,0.03367984]
[1747648197130,0.19399238,103150.0,103140.0,0.22759102]
[1747648197594,0.19399238,103150.0,103140.0,0.03367984]
[1747648198069,0.19399238,103150.0,103140.0,0.22759102]
[1747648200888,0.19399238,103150.0,103140.0,0.03367984]
[1747648201122,0.20929238,103150.0,103140.0,0.03367984]
[1747648201345,0.20929238,103150.0,103140.0,0.01807984]
[1747648202047,0.39809238,103150.0,103140.0,0.01807984]
[1747648204597,0.51200178,103150.0,103140.0,0.01807984]
[1747648205224,0.67483675,103150.0,103140.0,0.01807984]
[1747648205473,0.86367675,103150.0,103140.0,0.01807984]
[1747648206318,0.86367675,103150.0,103140.0,0.01014321]
[1747648206751,1.20367675,103150.0,103140.0,0.01014321]
[1747648207197,1.50367675,103150.0,103140.0,0.00544942]
[1747648207659,1.20367675,103150.0,103140.0,0.00544942]
[1747648208096,1.20367675,103150.0,103140.0,0.00344942]
[1747648208340,1.20367675,103150.0,103140.0,0.00144942]
[1747648208770,1.2182176,103150.0,103140.0,0.00144942]
[1747648208982,1.22894955,103150.0,103140.0,0.00144942]
[1747648211309,1.2182176,103150.0,103140.0,0.00144942]
[1747648212088,1.4382176,103150.0,103140.0,0.00144942]
[1747648212998,1.07204178,103150.0,103140.0,0.00144942]
[1747648213220,0.88200178,103150.0,103140.0,0.00144942]
[1747648213678,1.24424178,103150.0,103140.0,0.00144942]
[1747648214565,1.26064178,103150.0,103140.0,0.00144942]
[1747648214782,1.42347675,103150.0,103140.0,0.00144942]
[1747648221658,1.8567776,103150.0,103140.0,0.00144942]
[1747648221884,1.65343675,103150.0,103140.0,0.00144942]
[1747648222085,1.46459675,103150.0,103140.0,0.00144942]
[1747648222269,1.84227675,103150.0,103140.0,0.00144942]
[1747648225508,1.46459675,103150.0,103140.0,0.00144942]
[1747648225687,1.84223675,103150.0,103140.0,0.00144942]
[1747648225900,1.82583675,103150.0,103140.0,0.00144942]
[1747648226108,1.84223675,103150.0,103140.0,0.00144942]
[1747648226251,1.82571675,103150.0,103140.0,0.00144942]
[1747648226721,1.84211675,103150.0,103140.0,0.00144942]
[1747648228719,1.8566576,103150.0,103140.0,0.00144942]
[1747648228920,2.01949257,103150.0,103140.0,0.00144942]
[1747648230537,2.02049257,103150.0,103140.0,0.00144942]
[1747648231053,2.02149257,103150.0,103140.0,0.00144942]
[1747648233478,1.47220019,103150.0,103140.0,0.00144942]
[1747648233874,1.66609257,103150.0,103140.0,0.00144942]
[1747648234320,1.70429444,103150.0,103140.0,0.00144942]
[1747648234736,7.0755087,103150.0,103140.0,0.00144942]
[1747648235575,7.4155087,103150.0,103140.0,0.00144942]
[1747648235797,7.61086212,103150.0,103140.0,0.00144942]
[1747648236015,7.67905212,103150.0,103140.0,0.00144942]
[1747648236437,2.3011407,103150.0,103140.0,0.00144942]
[1747648236821,2.3001407,103150.0,103140.0,0.00144942]
[1747648237031,2.3051407,103150.0,103140.0,0.00144942]
[1747648237462,2.2469507,103150.0,103140.0,0.00144942]
[1747648237661,7.4437087,103150.0,103140.0,0.00144942]
[1747648237858,7.4487087,103150.0,103140.0,0.00144942]
[1747648241953,0.92583311,103130.0,103120.0,0.001]
[1747648242104,1.40070251,103130.0,103120.0,0.00144929]
[1747648243648,1.07503257,103130.0,103120.0,0.00144929]
[1747648243870,1.05983257,103130.0,103120.0,0.00144929]
[1747648244105,1.40240251,103130.0,103120.0,0.00144929]
[1747648245766,1.39988174,103130.0,103120.0,0.00144929]
[1747648246404,1.39376635,103130.0,103120.0,0.00144929]
[1747648247356,1.40886635,103130.0,103120.0,0.00144929]
[1747648247686,1.47735362,103130.0,103120.0,0.00144929]
[1747648247907,1.40886635,103130.0,103120.0,0.00144929]
[1747648256111,1.40886635,103130.0,103120.0,0.00935316]
[1747648256833,1.51086635,103130.0,103120.0,0.00935316]
[1747648257051,0.55357449,103110.0,103100.0,0.001]
[1747648257262,1.44772389,103110.0,103100.0,0.00147944]
[1747648257728,1.46382389,103110.0,103100.0,0.00147944]
[1747648257938,1.47922389,103110.0,103100.0,0.00147944]
[1747648258410,0.55340509,103090.0,103080.0,0.0624]
[1747648258654,1.35426443,103090.0,103080.0,0.06248907]
[1747648259446,1.35426443,103090.0,103080.0,0.04678907]
[1747648259654,1.35526443,103090.0,103080.0,0.04678907]
[1747648259857,1.03059449,103090.0,103080.0,0.04678907]
[1747648260032,1.35626443,103090.0,103080.0,0.06298907]
[1747648260809,1.38414772,103090.0,103080.0,0.04678907]
[1747648261251,1.38650528,103090.0,103080.0,0.03108907]
[1747648261801,1.40190528,103090.0,103080.0,0.03108907]
[1747648262760,1.01897031,103090.0,103080.0,0.06378907]
[1747648262983,0.83009031,103090.0,103080.0,0.06378907]
[1747648263319,1.20801031,103090.0,103080.0,0.06378907]
[1747648263954,1.37084528,103090.0,103080.0,0.06378907]
[1747648264740,1.37084528,103090.0,103080.0,0.04748907]
[1747648264912,1.46815468,103090.0,103080.0,0.03108907]
[1747648265336,1.48257472,103090.0,103080.0,0.03108907]
[1747648265876,1.55664496,103090.0,103080.0,0.03108907]
[1747648266991,1.55664496,103090.0,103080.0,0.04608907]
[1747648267201,0.93020017,103090.0,103080.0,0.04608907]
[1747648267427,1.30796017,103090.0,103080.0,0.06158907]
[1747648267642,0.93020017,103090.0,103080.0,0.06158907]
[1747648267862,1.30800017,103090.0,103080.0,0.06158907]
[1747648268803,1.10457932,103090.0,103080.0,0.06158907]
[1747648269026,1.29341932,103090.0,103080.0,0.06158907]
[1747648269268,0.91565932,103090.0,103080.0,0.06158907]
[1747648269460,1.27907928,103090.0,103080.0,0.06158907]
[1747648271312,0.69047449,103090.0,103080.0,0.06158907]
[1747648271541,1.03047449,103090.0,103080.0,0.06158907]
[1747648271971,0.65271449,103090.0,103080.0,0.06158907]
[1747648272181,0.65171449,103090.0,103080.0,0.06158907]
[1747648272405,0.84055449,103090.0,103080.0,0.06258907]
[1747648272626,0.83955449,103090.0,103080.0,0.06258907]
[1747648273269,0.89923928,103090.0,103080.0,0.06258907]
[1747648273474,1.27699928,103090.0,103080.0,0.06258907]
[1747648273747,1.27699928,103090.0,103080.0,0.06358907]
[1747648274168,1.49699928,103090.0,103080.0,0.06358907]
[1747648278655,1.24847449,103090.0,103080.0,0.06358907]
[1747648278871,1.49699928,103090.0,103080.0,0.06358907]
[1747648279088,1.24847449,103090.0,103080.0,0.06358907]
[1747648279493,1.05963449,103090.0,103080.0,0.06358907]
[1747648279697,0.87071449,103090.0,103080.0,0.06358907]
[1747648279900,1.24847449,103090.0,103080.0,0.06358907]
[1747648280556,0.96232509,103090.0,103080.0,0.06358907]
[1747648280764,1.15116509,103090.0,103080.0,0.06358907]
[1747648283136,0.96232509,103090.0,103080.0,0.06358907]
[1747648283484,0.81116509,103090.0,103080.0,0.06358907]
[1747648283693,0.62232509,103090.0,103080.0,0.06358907]
[1747648283896,0.81116509,103090.0,103080.0,0.06358907]
[1747648284363,0.81116509,103090.0,103080.0,0.06797004]
[1747648284929,0.62232509,103090.0,103080.0,0.27169519]
[1747648285137,0.6126253,103090.0,103080.0,0.06797004]
[1747648289691,0.3926253,103090.0,103080.0,0.06797004]
[1747648291043,0.8299347,103090.0,103080.0,0.06797004]
[1747648291258,1.07845949,103090.0,103080.0,0.05247004]
[1747648292316,1.26725949,103090.0,103080.0,0.05247004]
[1747648292524,1.0187347,103090.0,103080.0,0.06837004]
[1747648292762,1.0187347,103090.0,103080.0,0.06398907]
[1747648292966,1.2387347,103090.0,103080.0,0.06398907]
[1747648294066,1.48725949,103090.0,103080.0,0.06398907]
[1747648294484,1.2387347,103090.0,103080.0,0.06398907]
[1747648299749,1.2387347,103090.0,103080.0,0.06837664]
[1747648300934,1.2386147,103090.0,103080.0,0.06837664]
[1747648301135,1.2386147,103090.0,103080.0,0.06847664]
[1747648302462,1.2387147,103090.0,103080.0,0.06847664]
[1747648306895,1.2387147,103090.0,103080.0,0.05247664]
[1747648308482,1.40173214,103090.0,103080.0,0.05247664]
[1747648308888,1.41763214,103090.0,103080.0,0.03747664]
[1747648309090,1.43293214,103090.0,103080.0,0.03747664]
[1747648309640,1.43293214,103090.0,103080.0,0.03308907]
[1747648311235,1.43293214,103090.0,103080.0,0.01308907]
[1747648312260,1.41763214,103090.0,103080.0,0.01308907]
[1747648312890,1.02413214,103090.0,103080.0,0.01308907]
[1747648313441,1.03963214,103090.0,103080.0,0.01308907]
[1747648313941,1.40173214,103090.0,103080.0,0.01308907]
[1747648316095,1.0499147,103090.0,103080.0,0.04338907]
[1747648316291,1.2387147,103090.0,103080.0,0.04338907]
[1747648317069,1.40173214,103090.0,103080.0,0.04338907]
[1747648317516,1.40173214,103090.0,103080.0,0.02828907]
[1747648317727,1.4872074,103090.0,103080.0,0.01308907]
[1747648318619,1.4872074,103090.0,103080.0,0.02888907]
[1747648322766,1.4872074,103090.0,103080.0,0.01308907]
[1747648323797,1.1251074,103090.0,103080.0,0.01308907]
[1747648324006,1.5026274,103090.0,103080.0,0.01308907]
[1747648324602,1.5190274,103090.0,103080.0,0.01308907]
[1747648326693,1.3138674,103090.0,103080.0,0.01308907]
[1747648326888,1.4871274,103090.0,103080.0,0.01308907]
[1747648327772,1.5036274,103090.0,103080.0,0.01308907]
[1747648329172,1.3148674,103090.0,103080.0,0.01308907]
[1747648329428,1.4871274,103090.0,103080.0,0.02878907]
[1747648329656,1.4871274,103090.0,103080.0,0.04448907]
[1747648329899,1.1096074,103090.0,103080.0,0.04448907]
[1747648330061,1.2386347,103090.0,103080.0,0.04448907]
[1747648330727,0.8611147,103090.0,103080.0,0.04448907]
[1747648330938,0.6125653,103090.0,103080.0,0.04448907]
[1747648331149,0.8013253,103090.0,103080.0,0.04448907]
[1747648331349,0.6125653,103090.0,103080.0,0.04448907]
[1747648332380,0.8013253,103090.0,103080.0,0.04448907]
[1747648332571,0.8013253,103090.0,103080.0,0.05071927]
[1747648332778,0.8013253,103090.0,103080.0,0.05503234]
[1747648336647,0.5813253,103090.0,103080.0,0.05503234]
[1747648337266,0.5813253,103090.0,103080.0,0.05255234]
[1747648337685,0.2038053,103090.0,103080.0,0.05255234]
[1747648337900,0.3925653,103090.0,103080.0,0.05255234]
[1747648338326,0.4425653,103090.0,103080.0,0.05255234]
[1747648339808,0.2538053,103090.0,103080.0,0.05255234]
[1747648340235,0.2538053,103090.0,103080.0,0.26597831]
[1747648340412,0.4425653,103090.0,103080.0,0.25627749]
[1747648340621,0.2538053,103090.0,103080.0,0.25627749]
[1747648340827,0.43286523,103090.0,103080.0,0.24657639]
[1747648341433,0.43286523,103090.0,103080.0,0.05255234]
[1747648342836,0.43282523,103090.0,103080.0,0.25627749]
[1747648347168,0.43282523,103090.0,103080.0,0.05255234]
[1747648347779,0.44252751,103090.0,103080.0,0.03685234]
[1747648348595,0.44252751,103090.0,103080.0,0.05215234]
[1747648350265,0.53983691,103090.0,103080.0,0.02115234]
[1747648350477,0.78832961,103090.0,103080.0,0.02115234]
[1747648350666,0.80462961,103090.0,103080.0,0.02115234]
[1747648351094,0.80462961,103090.0,103080.0,0.01492214]
[1747648352171,0.80458961,103090.0,103080.0,0.01492214]
[1747648352391,0.55609691,103090.0,103080.0,0.01492214]
[1747648355246,1.16048961,103090.0,103080.0,0.01492214]
[1747648355662,1.34916961,103090.0,103080.0,0.01492214]
[1747648356149,1.33326961,103090.0,103080.0,0.01492214]
[1747648356347,0.95590961,103090.0,103080.0,0.01492214]
[1747648356552,1.08477691,103090.0,103080.0,0.01060907]
[1747648357461,1.33326961,103090.0,103080.0,0.01060907]
[1747648358460,6.98500365,103090.0,103080.0,0.01060907]
[1747648358688,0.8331392,103070.0,103060.0,0.00671363]
[1747648358911,1.0431159,103070.0,103060.0,0.00685052]
[1747648359828,1.0430759,103070.0,103060.0,0.00113689]
[1747648360306,1.2915686,103070.0,103060.0,0.00113689]
[1747648361010,1.2915686,103070.0,103060.0,0.00213689]
[1747648361231,1.2915686,103070.0,103060.0,0.00113689]
[1747648361362,1.2925686,103070.0,103060.0,0.00113689]
[1747648361676,1.2935686,103070.0,103060.0,0.00113689]
[1747648363594,1.00456735,103070.0,103060.0,0.00113689]
[1747648363796,0.94734945,103070.0,103060.0,0.00113689]
[1747648364004,1.32478945,103070.0,103060.0,0.00113689]
[1747648367510,1.33921375,103070.0,103060.0,0.00113689]
[1747648368068,1.34309775,103070.0,103060.0,0.00113689]
[1747648368277,1.44040715,103070.0,103060.0,0.00113689]
[1747648372006,1.44044715,103070.0,103060.0,0.00113689]
[1747648373515,2.13884715,103070.0,103060.0,0.00113689]
[1747648373741,2.13496315,103070.0,103060.0,0.00113689]
[1747648374864,2.38345585,103070.0,103060.0,0.00113689]
[1747648375068,2.13496315,103070.0,103060.0,0.00113689]
[1747648375834,2.13884715,103070.0,103060.0,0.00113689]
[1747648376039,2.13784715,103070.0,103060.0,0.00113689]
[1747648376214,2.14084715,103070.0,103060.0,0.00113689]
[1747648376413,1.76336715,103070.0,103060.0,0.00113689]
[1747648376605,2.14584715,103070.0,103060.0,0.00113689]
[1747648381264,1.93664315,103070.0,103060.0,0.00113689]
[1747648381492,2.02801375,103070.0,103060.0,0.00113689]
[1747648381858,2.02793375,103070.0,103060.0,0.00113689]
[1747648382053,2.12993375,103070.0,103060.0,0.00113689]
[1747648382254,2.02793375,103070.0,103060.0,0.00113689]
[1747648385773,2.01293375,103070.0,103060.0,0.00113689]
[1747648385991,2.01293375,103070.0,103060.0,0.01653689]
[1747648385992,1.8097129,103070.0,103060.0,0.01653689]
[1747648386208,2.4175529,103070.0,103060.0,0.01653689]
[1747648388057,2.4757429,103070.0,103060.0,0.01653689]
[1747648388226,2.4175529,103070.0,103060.0,0.01653689]
[1747648388448,2.4175529,103070.0,103060.0,0.00113689]
[1747648390869,2.2288729,103070.0,103060.0,0.00113689]
[1747648391072,2.4175129,103070.0,103060.0,0.01623689]
[1747648392379,2.5148223,103070.0,103060.0,0.01623689]
[1747648392765,2.3261823,103070.0,103060.0,0.01623689]
[1747648392970,2.5148223,103070.0,103060.0,0.01623689]
[1747648393185,2.5148223,103070.0,103060.0,0.03223689]
[1747648393553,2.4175129,103070.0,103060.0,0.03223689]
[1747648394051,2.4175129,103070.0,103060.0,0.01623689]
[1747648400023,1.7191129,103070.0,103060.0,0.01623689]
[1747648400692,2.0191129,103070.0,103060.0,0.01623689]
[1747648401878,1.93376218,103070.0,103060.0,0.01623689]
[1747648405398,1.74365771,103070.0,103060.0,0.01623689]
[1747648405635,1.93221771,103070.0,103060.0,0.01623689]
[1747648407940,1.93221771,103070.0,103060.0,0.03233689]
[1747648408910,1.93221771,103070.0,103060.0,0.01623689]
[1747648425936,1.93221771,103070.0,103060.0,0.00113689]
[1747648426131,1.94841771,103070.0,103060.0,0.00113689]
[1747648426339,2.14240054,103070.0,103060.0,0.00113689]
[1747648426969,2.26699299,103070.0,103060.0,0.00113689]
[1747648427202,2.29946339,103070.0,103060.0,0.00113689]
[1747648427450,2.30946339,103070.0,103060.0,0.00113689]
[1747648427672,0.59930825,103060.0,103050.0,0.0024484]
[1747648427812,0.59930825,103060.0,103050.0,0.00249403]
[1747648427813,1.14749406,103060.0,103050.0,0.00249403]
[1747648428242,1.17662406,103060.0,103050.0,0.00249403]
[1747648429491,1.17862406,103060.0,103050.0,0.00249403]
[1747648429731,1.18162406,103060.0,103050.0,0.00249403]
[1747648431181,1.37002406,103060.0,103050.0,0.00249403]
[1747648431581,1.34274101,103060.0,103050.0,0.00249403]
[1747648433513,1.15434101,103060.0,103050.0,0.00249403]
[1747648433776,1.19587878,103060.0,103050.0,0.03489403]
[1747648433982,1.35902076,103060.0,103050.0,0.03489403]
[1747648434185,1.19568449,103060.0,103050.0,0.03489403]
[1747648434603,0.81872449,103060.0,103050.0,0.03489403]
[1747648435034,1.11031672,103060.0,103050.0,0.00249403]
[1747648435246,1.50367672,103060.0,103050.0,0.00249403]
[1747648437723,1.42607454,103060.0,103050.0,0.00249403]
[1747648438136,1.29576514,103060.0,103050.0,0.00249403]
[1747648438328,1.29576514,103060.0,103050.0,0.01899403]
[1747648439149,0.91880514,103060.0,103050.0,0.01899403]
[1747648439360,1.29572514,103060.0,103050.0,0.01899403]
[1747648441268,1.29572514,103060.0,103050.0,0.00249403]
[1747648441519,1.37926475,103060.0,103050.0,0.00249403]
[1747648441718,1.39526475,103060.0,103050.0,0.00249403]
[1747648442066,0.91880514,103060.0,103050.0,0.03329403]
[1747648442275,1.29544514,103060.0,103050.0,0.03329403]
[1747648443211,1.09258429,103060.0,103050.0,0.03329403]
[1747648443415,1.03222251,103060.0,103050.0,0.03329403]
[1747648443609,1.28090429,103060.0,103050.0,0.03329403]
[1747648444843,0.90426429,103060.0,103050.0,0.03329403]
[1747648445061,1.09258429,103060.0,103050.0,0.03329403]
[1747648445255,1.28090429,103060.0,103050.0,0.03329403]
[1747648457057,0.65558251,103060.0,103050.0,0.03329403]
[1747648457282,0.74659311,103060.0,103050.0,0.03329403]
[1747648457719,0.93479311,103060.0,103050.0,0.03329403]
[1747648458354,0.93479311,103060.0,103050.0,0.03951992]
[1747648459097,0.93479311,103060.0,103050.0,0.03757809]
[1747648460813,0.21827311,103060.0,103050.0,0.03757809]
[1747648461017,0.59475311,103060.0,103050.0,0.04380104]
[1747648461920,0.40359311,103060.0,103050.0,0.04380104]
[1747648462080,0.58975311,103060.0,103050.0,0.23788158]
[1747648462283,0.59075311,103060.0,103050.0,0.23788158]
[1747648462530,0.59075311,103060.0,103050.0,0.04380104]
[1747648462743,0.59175311,103060.0,103050.0,0.04380104]
[1747648474424,0.65175311,103060.0,103050.0,0.04380104]
[1747648474629,0.46359311,103060.0,103050.0,0.04380104]
[1747648474788,0.65163311,103060.0,103050.0,0.04380104]
[1747648477804,0.65163311,103060.0,103050.0,0.03951698]
[1747648478393,0.65163311,103060.0,103050.0,0.04374877]
[1747648479771,0.65163311,103060.0,103050.0,0.02844877]
[1747648481221,0.65163311,103060.0,103050.0,0.04444877]
[1747648485738,0.65151311,103060.0,103050.0,0.04444877]
[1747648485893,0.46331311,103060.0,103050.0,0.04444877]
[1747648486102,0.27527311,103060.0,103050.0,0.04444877]
[1747648489264,0.46315311,103060.0,103050.0,0.04444877]
[1747648496093,0.46315311,103060.0,103050.0,0.03822582]
[1747648496304,0.65119311,103060.0,103050.0,0.04445692]
[1747648497809,0.92793884,103060.0,103050.0,0.01295692]
[1747648497961,0.91153884,103060.0,103050.0,0.01295692]
[1747648500501,0.91153884,103060.0,103050.0,0.02885692]
[1747648506832,0.91153884,103060.0,103050.0,0.01295692]
[1747648507286,1.44535517,103060.0,103050.0,0.01295692]
[1747648508129,1.44535517,103060.0,103050.0,0.00672582]
[1747648510653,1.28223884,103060.0,103050.0,0.00249403]
[1747648510801,1.09443884,103060.0,103050.0,0.00249403]
[1747648511009,0.71258251,103060.0,103050.0,0.01789403]
[1747648511216,0.71258251,103060.0,103050.0,0.03379403]
[1747648511380,0.27527311,103060.0,103050.0,0.24728233]
[1747648511583,0.46295311,103060.0,103050.0,0.03379403]
[1747648512996,0.72337884,103060.0,103050.0,0.04420746]
[1747648513192,0.72337884,103060.0,103050.0,0.02830746]
[1747648513465,0.72337884,103060.0,103050.0,0.01290746]
[1747648513884,0.75437884,103060.0,103050.0,0.01290746]
[1747648514056,1.09437884,103060.0,103050.0,0.01290746]
[1747648514260,1.07837884,103060.0,103050.0,0.01290746]
[1747648514823,1.07837884,103060.0,103050.0,0.00667786]
[1747648515032,1.06337884,103060.0,103050.0,0.00667786]
[1747648515234,1.06337884,103060.0,103050.0,0.02297786]
[1747648515444,0.90022251,103060.0,103050.0,0.03817786]
[1747648515653,0.61527311,103060.0,103050.0,0.04440846]
[1747648515891,0.80291311,103060.0,103050.0,0.04440846]
[1747648516280,0.61527311,103060.0,103050.0,0.04440846]
[1747648516483,0.80291311,103060.0,103050.0,0.04440846]
[1747648517169,0.46291311,103060.0,103050.0,0.04440846]
[1747648518846,0.65063311,103060.0,103050.0,0.04440846]
[1747648519046,0.46287311,103060.0,103050.0,0.04440846]
[1747648524136,0.46283311,103060.0,103050.0,0.04440846]
[1747648526619,0.40283311,103060.0,103050.0,0.04440846]
[1747648527955,0.93642494,103060.0,103050.0,0.02920846]
[1747648528156,1.23642494,103060.0,103050.0,0.02920846]
[1747648528390,1.59272494,103060.0,103050.0,0.01290846]
[1747648528599,1.27642494,103060.0,103050.0,0.01290846]
[1747648530964,1.27642494,103060.0,103050.0,0.02820846]
[1747648531939,1.02758251,103060.0,103050.0,0.04420846]
[1747648532156,0.65258251,103060.0,103050.0,0.04420846]
[1747648532360,0.84010251,103060.0,103050.0,0.04420846]
[1747648533152,0.61258251,103060.0,103050.0,0.04420846]
[1747648533311,0.40279311,103060.0,103050.0,0.04420846]
[1747648533509,0.59027311,103060.0,103050.0,0.04420846]
[1747648535091,0.59027311,103060.0,103050.0,0.02820846]
[1747648535305,0.95190494,103060.0,103050.0,0.01290846]
[1747648536468,0.93610494,103060.0,103050.0,0.01290846]
[1747648536704,0.93610494,103060.0,103050.0,0.02950846]
[1747648537070,0.68758251,103060.0,103050.0,0.02950846]
[1747648537483,0.68758251,103060.0,103050.0,0.04500846]
[1747648538163,0.90758251,103060.0,103050.0,0.04500846]
[1747648539050,0.90758251,103060.0,103050.0,0.02950846]
[1747648539416,0.90750251,103060.0,103050.0,0.02950846]
[1747648539893,0.81019311,103060.0,103050.0,0.04600846]
[1747648540065,0.43527311,103060.0,103050.0,0.04600846]
[1747648540284,0.62271311,103060.0,103050.0,0.04600846]
[1747648542325,0.40271311,103060.0,103050.0,0.04600846]
[1747648542538,0.65123554,103060.0,103050.0,0.04600846]
[1747648542756,0.65123554,103060.0,103050.0,0.01290846]
[1747648542757,0.74854494,103060.0,103050.0,0.01290846]
[1747648543192,0.74854494,103060.0,103050.0,0.02820846]
[1747648544030,0.50002251,103060.0,103050.0,0.02820846]
[1747648545056,0.50002251,103060.0,103050.0,0.04450846]
[1747648546231,0.68750251,103060.0,103050.0,0.04450846]
[1747648546556,0.31258251,103060.0,103050.0,0.04450846]
[1747648546763,0.68746251,103060.0,103050.0,0.04450846]
[1747648547651,0.68746251,103060.0,103050.0,0.02820846]
[1747648548368,0.98746251,103060.0,103050.0,0.02820846]
[1747648548575,0.68746251,103060.0,103050.0,0.02820846]
[1747648552616,0.68746251,103060.0,103050.0,0.01290846]
[1747648552826,0.70246251,103060.0,103050.0,0.01290846]
[1747648553028,1.29098494,103060.0,103050.0,0.01290846]
[1747648553232,1.30658494,103060.0,103050.0,0.01290846]
[1747648553434,1.60658494,103060.0,103050.0,0.01290846]
[1747648553682,1.30658494,103060.0,103050.0,0.00667786]
[1747648554104,1.30615838,103060.0,103050.0,0.00249403]
[1747648558927,1.60615838,103060.0,103050.0,0.00249403]
[1747648559283,1.30615838,103060.0,103050.0,0.00249403]
[1747648561843,1.29055838,103060.0,103050.0,0.00249403]
[1747648562047,1.27555838,103060.0,103050.0,0.00249403]
[1747648562260,1.27523838,103060.0,103050.0,0.01789403]
[1747648563040,1.08795838,103060.0,103050.0,0.01789403]
[1747648563237,1.27523838,103060.0,103050.0,0.01789403]
[1747648563437,1.27523838,103060.0,103050.0,0.03359403]
[1747648563921,1.49523838,103060.0,103050.0,0.03359403]
[1747648564572,1.49523838,103060.0,103050.0,0.01789403]
[1747648565696,1.88731106,103060.0,103050.0,0.00249403]
[1747648565924,1.94700894,103060.0,103050.0,0.00249403]
[1747648566163,1.93243254,103060.0,103050.0,0.00249403]
[1747648566379,1.21204071,103060.0,103050.0,0.00249403]
[1747648566554,1.54483238,103060.0,103050.0,0.00249403]
[1747648567194,1.52973238,103060.0,103050.0,0.00249403]
[1747648568167,1.15517238,103060.0,103050.0,0.00249403]
[1747648568361,1.52973238,103060.0,103050.0,0.00249403]
[1747648568816,1.54593238,103060.0,103050.0,0.00249403]
[1747648569930,1.52973238,103060.0,103050.0,0.00249403]
[1747648570777,1.54619238,103060.0,103050.0,0.00249403]
[1747648577716,1.94885238,103060.0,103050.0,0.00249403]
[1747648578759,1.93225238,103060.0,103050.0,0.00249403]
[1747648579254,1.72711838,103060.0,103050.0,0.00249403]
[1747648579494,1.91431838,103060.0,103050.0,0.01779403]
[1747648579823,1.53983838,103060.0,103050.0,0.01779403]
[1747648580053,1.91431838,103060.0,103050.0,0.03369403]
[1747648580689,1.91431838,103060.0,103050.0,0.01779403]
[1747648584313,1.29131595,103060.0,103050.0,0.03369403]
[1747648584784,1.66575595,103060.0,103050.0,0.03369403]
[1747648584991,1.66575595,103060.0,103050.0,0.0399249]
[1747648585419,1.66575595,103060.0,103050.0,0.04407078]
[1747648588161,1.66575595,103060.0,103050.0,0.04403078]
[1747648589551,1.53983838,103060.0,103050.0,0.04403078]
[1747648589770,1.91423838,103060.0,103050.0,0.01283078]
[1747648589988,1.93033838,103060.0,103050.0,0.00659991]
[1747648590194,1.93033838,103060.0,103050.0,0.00245403]
[1747648592478,1.91423838,103060.0,103050.0,0.00245403]
[1747648592676,1.92943838,103060.0,103050.0,0.00245403]
[1747648592879,1.91423838,103060.0,103050.0,0.00245403]
[1747648593313,1.91423838,103060.0,103050.0,0.01745403]
[1747648596085,1.91423838,103060.0,103050.0,0.01726785]
[1747648596828,1.91423838,103060.0,103050.0,0.00226785]
[1747648597890,1.92993838,103060.0,103050.0,0.00226785]
[1747648601370,1.94573838,103060.0,103050.0,0.00226785]
[1747648602515,1.92993838,103060.0,103050.0,0.00226785]
[1747648603505,1.29131595,103060.0,103050.0,0.01836785]
[1747648603713,1.66543595,103060.0,103050.0,0.03396785]
[1747648604090,1.91395838,103060.0,103050.0,0.03396785]
[1747648604491,1.53983838,103060.0,103050.0,0.03396785]